bitfinex/quotes_SOLUSD_20260202
["timestamp","ask_amount","ask_price","bid_price","bid_amount"]
[1770009468095,28.04,99.241,99.21,10.15640643]
[1770009468293,4.5,99.24,99.21,10.15640643]
[1770009468591,4.5,99.24,99.19,10.15640643]
[1770009469072,4.5,99.239,99.19,10.15640643]
[1770009469388,10.15640643,99.24,99.058,4.49862673]
[1770009469389,30.21,99.191,99.058,4.49862673]
[1770009469691,5.36086188,99.196,98.98,7.96885591]
[1770009469692,10.15640643,99.09,99.057,4.49862673]
[1770009469869,10.15640643,99.07,99.057,4.49862673]
[1770009470071,10.15640643,99.07,99.042,4.49862673]
[1770009470380,10.15640643,99.05,98.998,4.49862673]
[1770009470581,10.15640643,99.03,98.998,4.49862673]
[1770009470787,10.15640643,99.05,98.998,4.49862673]
[1770009471094,10.15640643,99.06,98.999,4.49862673]
[1770009471297,6.6511783,99.101,99.041,0.045]
[1770009471793,4.5,99.141,99.08,10.15640643]
[1770009472091,8.02803913,99.26,99.071,0.28432314]
[1770009472092,4.5,99.154,99.09,10.15640643]
[1770009472273,4.5,99.154,99.071,0.28432314]
[1770009472274,4.5,99.154,99.1,10.15640643]
[1770009472682,4.5,99.154,99.09,10.15640643]
[1770009473497,7.74058391,99.153,99.13,10.15640643]
[1770009473875,4.5,99.213,99.14,10.15640643]
[1770009474075,4.5,99.232,99.17,10.15640643]
[1770009474305,4.5,99.232,99.121,1.00886794]
[1770009474306,6.7399607,99.233,99.19,10.15640643]
[1770009474492,6.7399607,99.233,99.21,10.15640643]
[1770009474796,6.7399607,99.233,99.19,10.15640643]
[1770009475481,0.2,99.2,99.19,10.15640643]
[1770009475681,6.7399607,99.233,99.19,10.15640643]
[1770009475881,6.7399607,99.233,99.22,10.15640643]
[1770009476096,4.5,99.271,99.22,10.15640643]
[1770009476279,4.5,99.271,99.25,10.15640643]
[1770009476480,4.5,99.271,99.18,50.1423384]
[1770009476481,4.5,99.271,99.22,10.15640643]
[1770009476695,4.5,99.269,99.21,10.15640643]
[1770009477001,4.5,99.267,99.21,10.15640643]
[1770009477304,4.5,99.265,99.22,10.15640643]
[1770009477800,4.5,99.265,99.24,10.15640643]
[1770009478007,4.5,99.265,99.25,10.15640643]
[1770009478307,4.5,99.28,99.25,10.15640643]
[1770009478483,4.5,99.28,99.23,10.15640643]
[1770009478681,4.5,99.28,99.24,10.15640643]
[1770009479285,4.5,99.28,99.23,10.15640643]
[1770009479611,4.5,99.28,99.24,10.15640643]
[1770009480115,4.46227283,99.269,99.188,4.49862673]
[1770009480412,35.57086188,99.317,99.12,10.15640643]
[1770009480413,4.46227283,99.249,99.19,10.15640643]
[1770009480608,4.46227283,99.249,99.2,10.15640643]
[1770009481310,4.46227283,99.249,99.21,10.15640643]
[1770009481497,4.46227283,99.267,99.22,10.15640643]
[1770009481701,4.46227283,99.267,99.24,10.15640643]
[1770009481902,4.46227283,99.281,99.24,10.15640643]
[1770009482101,4.46227283,99.281,99.25,10.15640643]
[1770009482296,28.04,99.296,99.27,10.15640643]
[1770009482515,4.46227283,99.298,99.28,10.15640643]
[1770009482894,4.46227283,99.298,99.25,10.15640643]
[1770009483400,4.46227283,99.298,99.27,10.15640643]
[1770009483613,0.2,99.32,99.29,10.15640643]
[1770009483798,4.46227283,99.328,99.265,4.49862673]
[1770009483997,4.46227283,99.328,99.231,4.27527085]
[1770009483998,4.46227283,99.328,99.25,4.49862673]
[1770009484203,4.46227283,99.328,99.27,10.15640643]
[1770009484420,4.46227283,99.328,99.27,10.14662946]
[1770009484719,4.46227283,99.319,99.236,4.49862673]
[1770009486315,4.46227283,99.362,99.311,4.49862673]
[1770009486614,4.46227283,99.362,99.31,10.14662946]
[1770009487115,4.46227283,99.362,99.32,10.14662946]
[1770009487718,4.46227283,99.362,99.31,10.14662946]
[1770009487922,4.46227283,99.362,99.32,10.14662946]
[1770009488219,4.17687656,99.42,99.351,4.47391673]
[1770009488419,10.14662946,99.52,99.41,10.14662946]
[1770009488420,4.17687656,99.435,99.41,10.14662946]
[1770009488723,4.17687656,99.461,99.42,10.14662946]
[1770009488919,4.17687656,99.461,99.362,4.27527085]
[1770009488920,4.17687656,99.449,99.39,10.14662946]
[1770009489218,4.17687656,99.449,99.42,10.14662946]
[1770009489514,4.17687656,99.466,99.43,10.14662946]
[1770009489711,4.17687656,99.466,99.42,10.14662946]
[1770009489907,4.17687656,99.466,99.344,50.44538976]
[1770009489908,4.17687656,99.449,99.39,10.14662946]
[1770009490109,4.17687656,99.449,99.41,10.14662946]
[1770009490417,4.17687656,99.481,99.44,10.14662946]
[1770009490618,4.17687656,99.481,99.45,10.14662946]
[1770009490927,4.17687656,99.515,99.47,10.14662946]
[1770009491123,4.17687656,99.549,99.532,5.23963869]
[1770009491326,0.2,99.55,99.532,5.23963869]
[1770009491497,4.37687656,99.55,99.532,5.23963869]
[1770009491818,0.2,99.55,99.532,5.23963869]
[1770009492416,4.37687656,99.55,99.532,5.23963869]
[1770009492603,4.37687656,99.55,99.51,15.35289711]
[1770009492799,4.17687656,99.583,99.54,15.35289711]
[1770009493002,50.97513735,99.714,99.57,15.35289711]
[1770009493307,28.0,99.639,99.58,15.35289711]
[1770009493508,4.17687656,99.609,99.541,4.47391673]
[1770009493710,4.17687656,99.609,99.498,4.27527085]
[1770009493711,4.17687656,99.589,99.53,15.35289711]
[1770009493910,4.17687656,99.559,99.5,15.35289711]
[1770009494107,4.17687656,99.559,99.51,15.35289711]
[1770009494308,4.17687656,99.597,99.54,15.35289711]
[1770009494508,4.17687656,99.597,99.531,4.47391673]
[1770009494509,4.17687656,99.597,99.55,15.35289711]
[1770009494705,4.17687656,99.559,99.49,15.35289711]
[1770009494917,4.17687656,99.575,99.53,15.35289711]
[1770009495115,4.17687656,99.607,99.56,15.35289711]
[1770009495313,4.17687656,99.607,99.55,15.35289711]
[1770009495513,4.17687656,99.579,99.522,4.47391673]
[1770009495806,4.17687656,99.559,99.51,15.35289711]
[1770009496321,4.17687656,99.549,99.501,4.47391673]
[1770009496504,4.17687656,99.565,99.511,4.47391673]
[1770009496699,4.17687656,99.559,99.475,4.47391673]
[1770009496926,27.98,99.558,99.51,15.35289711]
[1770009497127,4.17687656,99.557,99.495,4.47391673]
[1770009497303,4.17687656,99.549,99.49,15.35289711]
[1770009497636,15.35289711,99.53,99.471,4.47391673]
[1770009497812,4.17687656,99.539,99.48,15.35289711]
[1770009498009,4.17687656,99.539,99.471,4.47391673]
[1770009498329,15.35289711,99.53,99.47,15.35289711]
[1770009498528,15.35289711,99.52,99.46,15.35289711]
[1770009498738,5.36086188,99.576,99.382,4.47391673]
[1770009498739,15.35289711,99.5,99.382,4.47391673]
[1770009498933,15.35289711,99.47,99.411,4.47391673]
[1770009499234,4.17687656,99.476,99.44,15.35289711]
[1770009499409,4.17687656,99.492,99.45,15.35289711]
[1770009499608,4.17687656,99.49,99.44,15.35289711]
[1770009499804,4.17687656,99.488,99.43,15.35289711]
[1770009500026,4.17687656,99.469,99.406,4.47391673]
[1770009500230,4.17687656,99.459,99.4,15.35289711]
[1770009500427,4.17687656,99.467,99.411,4.47391673]
[1770009501019,27.96,99.468,99.344,5.36086188]
[1770009501020,4.17687656,99.459,99.4,15.35289711]
[1770009501332,4.17687656,99.459,99.344,5.36086188]
[1770009501333,4.17687656,99.459,99.41,15.35289711]
[1770009501634,4.17687656,99.479,99.431,4.47391673]
[1770009501830,4.17687656,99.479,99.42,15.35289711]
[1770009502016,4.17687656,99.459,99.4,15.35289711]
[1770009502822,15.35289711,99.43,99.38,15.35289711]
[1770009503023,4.17687656,99.419,99.344,4.47391673]
[1770009503224,4.17687656,99.419,99.36,15.35289711]
[1770009503626,4.17687656,99.399,99.343,4.47391673]
[1770009503828,4.17687656,99.389,99.341,4.47391673]
[1770009504140,27.96,99.398,99.36,15.35289711]
[1770009504440,4.17687656,99.389,99.34,15.35289711]
[1770009504848,4.17687656,99.388,99.336,4.47391673]
[1770009505016,4.17687656,99.369,99.31,15.35289711]
[1770009505221,4.17687656,99.359,99.31,15.35289711]
[1770009505822,4.17687656,99.339,99.28,4.47391673]
[1770009506033,4.17687656,99.329,99.281,4.47391673]
[1770009506342,27.98,99.349,99.301,4.47391673]
[1770009506730,4.17687656,99.348,99.291,4.47391673]
[1770009506933,4.17687656,99.348,99.3,15.35289711]
[1770009507344,4.17687656,99.369,99.32,15.35289711]
[1770009507537,4.17687656,99.349,99.262,4.47391673]
[1770009507723,27.98,99.353,99.32,15.35289711]
[1770009508648,27.98,99.353,99.33,15.35289711]
[1770009509247,4.17687656,99.359,99.3,15.35289711]
[1770009509546,4.17687656,99.339,99.276,4.47391673]
[1770009509748,4.17687656,99.319,99.261,4.47391673]
[1770009510131,4.17687656,99.319,99.27,15.35289711]
[1770009510328,15.35289711,99.35,99.291,4.47391673]
[1770009510630,15.35289711,99.36,99.3,15.35289711]
[1770009510832,4.17687656,99.339,99.281,4.47391673]
[1770009511432,4.17687656,99.339,99.231,4.27527085]
[1770009511433,4.17687656,99.319,99.264,4.47391673]
[1770009511644,4.17687656,99.319,99.27,15.35289711]
[1770009511850,4.17687656,99.309,99.25,15.35289711]
[1770009512151,27.98,99.308,99.27,15.35289711]
[1770009512344,27.98,99.308,99.261,4.47391673]
[1770009512940,32.15687656,99.308,99.261,4.47391673]
[1770009513344,4.17687656,99.299,99.246,4.47391673]
[1770009513938,15.35289711,99.28,99.231,4.47391673]
[1770009514251,4.17687656,99.279,99.22,15.35289711]
[1770009514448,4.17687656,99.279,99.221,4.47391673]
[1770009514636,4.17687656,99.279,99.23,10.15735754]
[1770009515254,4.17687656,99.279,99.221,4.47391673]
[1770009515648,4.17687656,99.269,99.211,4.47391673]
[1770009515950,4.17687656,99.267,99.211,4.47391673]
[1770009516446,32.17687656,99.267,99.221,4.47391673]
[1770009516650,4.17687656,99.266,99.21,10.25735754]
[1770009516834,4.17687656,99.249,99.21,0.1]
[1770009517031,10.15735754,99.24,99.21,0.1]
[1770009517227,4.17687656,99.229,99.173,4.47391673]
[1770009517450,4.17687656,99.219,99.173,4.47391673]
[1770009517857,4.25829859,99.239,99.181,4.16107951]
[1770009518033,4.25829859,99.238,99.19,10.15735754]
[1770009518350,4.25829859,99.238,99.181,4.16107951]
[1770009518547,28.0,99.239,99.211,4.16107951]
[1770009518753,28.0,99.26,99.22,10.15735754]
[1770009518953,28.0,99.26,99.211,4.16107951]
[1770009518954,4.25829859,99.259,99.2,10.15735754]
[1770009519250,4.25829859,99.259,99.211,4.16107951]
[1770009520451,28.0,99.26,99.161,4.27527085]
[1770009520452,4.25829859,99.275,99.221,4.16107951]
[1770009520941,28.0,99.277,99.231,4.16107951]
[1770009521627,4.25829859,99.304,99.25,14.31843705]
[1770009521844,4.25829859,99.302,99.25,14.31843705]
[1770009522150,10.25156295,99.25,99.2,10.15735754]
[1770009522352,4.25829859,99.302,99.24,10.15735754]
[1770009522573,4.25829859,99.302,99.25,10.15735754]
[1770009522727,4.25829859,99.289,99.23,10.15735754]
[1770009522934,4.25829859,99.287,99.23,10.15735754]
[1770009523147,4.25829859,99.279,99.22,10.15735754]
[1770009523455,4.25829859,99.269,99.22,10.15735754]
[1770009523633,4.25829859,99.269,99.23,10.15735754]
[1770009524050,4.25829859,99.269,99.22,10.15735754]
[1770009524249,4.25829859,99.269,99.23,10.15735754]
[1770009524448,4.25829859,99.269,99.22,10.15735754]
[1770009524651,4.25829859,99.269,99.21,10.15735754]
[1770009525149,4.25829859,99.269,99.22,10.15735754]
[1770009525668,4.25829859,99.269,99.23,10.15735754]
[1770009526255,4.25829859,99.299,99.25,10.15735754]
[1770009526775,4.25829859,99.299,99.24,10.15735754]
[1770009526971,4.25829859,99.299,99.25,10.15735754]
[1770009527271,4.25829859,99.299,99.26,10.15735754]
[1770009527752,4.25829859,99.299,99.25,10.15735754]
[1770009528353,4.25829859,99.299,99.24,10.15735754]
[1770009528563,4.47921817,99.279,99.22,10.15735754]
[1770009528748,4.47921817,99.279,99.205,1.17855918]
[1770009528957,4.47921817,99.279,99.23,10.15735754]
[1770009529364,4.47921817,99.269,99.21,10.15735754]
[1770009529559,4.47921817,99.268,99.22,10.15735754]
[1770009530259,4.47921817,99.268,99.21,10.15735754]
[1770009531070,4.47921817,99.268,99.22,10.15735754]
[1770009531351,4.47921817,99.268,99.23,10.15735754]
[1770009532380,4.47921817,99.268,99.22,10.15735754]
[1770009533772,4.47921817,99.266,99.21,10.15735754]
[1770009534160,4.47921817,99.266,99.22,10.15735754]
[1770009534783,4.47921817,99.266,99.23,10.15735754]
[1770009534971,4.47921817,99.266,99.161,4.27527085]
[1770009535180,4.47921817,99.266,99.21,10.15735754]
[1770009535566,4.47921817,99.266,99.144,50.24962914]
[1770009535567,4.47921817,99.249,99.19,10.15735754]
[1770009535770,4.47921817,99.247,99.2,10.15735754]
[1770009535973,4.47921817,99.247,99.194,1.17855918]
[1770009536175,4.47921817,99.247,99.22,10.15735754]
[1770009536569,4.47921817,99.247,99.21,10.15735754]
[1770009537085,4.47921817,99.247,99.19,10.15735754]
[1770009537289,4.47921817,99.245,99.21,10.15735754]
[1770009537987,4.47921817,99.245,99.192,1.17855918]
[1770009537988,28.02,99.254,99.22,10.15735754]
[1770009538168,4.47921817,99.259,99.22,10.15735754]
[1770009539478,4.47921817,99.259,99.21,10.15735754]
[1770009539684,4.47921817,99.259,99.22,10.15735754]
[1770009540167,28.02,99.262,99.23,10.15735754]
[1770009540369,4.47921817,99.299,99.25,10.15735754]
[1770009540602,4.47921817,99.289,99.211,1.17855918]
[1770009540892,4.47921817,99.229,99.148,1.17855918]
[1770009541072,4.47921817,99.219,99.16,10.15735754]
[1770009541276,4.47921817,99.219,99.173,1.17855918]
[1770009541496,28.02,99.228,99.161,1.17855918]
[1770009541797,4.47921817,99.234,99.21,10.15735754]
[1770009542168,4.47921817,99.234,99.181,1.17855918]
[1770009542363,4.47921817,99.229,99.17,10.15735754]
[1770009542786,4.47921817,99.227,99.17,10.15735754]
[1770009543688,4.47921817,99.219,99.17,10.15735754]
[1770009543882,4.47921817,99.209,99.16,10.15735754]
[1770009544083,4.47921817,99.209,99.17,10.15735754]
[1770009544391,4.47921817,99.209,99.16,10.17086785]
[1770009544594,4.47921817,99.209,99.15,10.17086785]
[1770009545093,4.47921817,99.209,99.17,10.17086785]
[1770009545276,28.02,99.216,99.19,10.17086785]
[1770009545483,4.47921817,99.223,99.19,10.17086785]
[1770009546189,4.47921817,99.209,99.16,10.17086785]
[1770009546568,10.17086785,99.2,99.14,10.17086785]
[1770009546888,4.47921817,99.189,99.13,10.17086785]
[1770009547393,4.47921817,99.189,99.15,10.17086785]
[1770009547600,28.02,99.19,99.16,10.17086785]
[1770009548195,4.5,99.228,99.18,10.17086785]
[1770009548387,4.5,99.228,99.19,10.17086785]
[1770009548570,4.5,99.255,99.21,10.17086785]
[1770009549576,4.5,99.255,99.2,10.17086785]
[1770009549793,4.5,99.239,99.18,10.17086785]
[1770009550575,4.5,99.239,99.19,10.17086785]
[1770009551092,4.5,99.239,99.18,10.17086785]
[1770009551387,4.5,99.229,99.17,10.17086785]
[1770009551771,4.5,99.229,99.19,10.17086785]
[1770009551971,28.02,99.254,99.142,0.28432314]
[1770009551972,4.5,99.243,99.2,10.17086785]
[1770009552168,4.5,99.256,99.22,10.17086785]
[1770009552394,28.04,99.269,99.24,10.17086785]
[1770009552585,62.7,99.424,99.25,10.17086785]
[1770009552586,4.5,99.301,99.25,10.17086785]
[1770009552773,4.5,99.315,99.28,10.17086785]
[1770009553684,4.5,99.315,99.27,10.17086785]
[1770009553895,4.5,99.315,99.28,10.17086785]
[1770009554404,4.5,99.315,99.29,10.17086785]
[1770009554697,4.5,99.328,99.29,10.17086785]
[1770009554887,4.5,99.328,99.232,0.28432314]
[1770009554888,4.5,99.328,99.3,10.17086785]
[1770009555276,4.5,99.328,99.216,0.28432314]
[1770009555598,4.5,99.325,99.27,10.17086785]
[1770009556182,4.5,99.325,99.28,10.17086785]
[1770009556593,28.02,99.327,99.3,10.17086785]
[1770009556799,32.52,99.327,99.3,10.17086785]
[1770009556982,32.52,99.327,99.29,10.17086785]
[1770009557177,32.52,99.327,99.3,10.17086785]
[1770009557499,32.52,99.327,99.29,10.17086785]
[1770009557694,4.5,99.326,99.232,0.28432314]
[1770009557998,4.5,99.326,99.213,4.27527085]
[1770009558202,4.5,99.326,99.28,10.17086785]
[1770009558781,4.5,99.326,99.29,10.17086785]
[1770009558981,4.5,99.326,99.28,10.17086785]
[1770009559203,4.5,99.326,99.27,10.17086785]
[1770009559781,4.5,99.324,99.28,10.17086785]
[1770009560184,4.5,99.324,99.27,10.17086785]
[1770009560601,4.5,99.324,99.29,10.17086785]
[1770009560796,28.02,99.325,99.3,10.17086785]
[1770009560998,4.5,99.324,99.28,10.17086785]
[1770009561307,4.5,99.324,99.29,10.17086785]
[1770009561605,4.5,99.324,99.28,10.17086785]
[1770009561807,4.5,99.324,99.29,10.17086785]
[1770009562203,4.5,99.324,99.231,4.27527085]
[1770009562501,4.5,99.319,99.27,10.17086785]
[1770009562702,4.5,99.319,99.28,10.17086785]
[1770009562893,4.5,99.319,99.27,10.17086785]
[1770009563293,4.5,99.319,99.221,4.27527085]
[1770009563294,4.5,99.319,99.26,10.17086785]
[1770009563483,4.5,99.317,99.27,10.17086785]
[1770009563684,28.02,99.318,99.28,10.17086785]
[1770009563903,28.02,99.318,99.29,10.17086785]
[1770009564602,4.5,99.317,99.28,10.17086785]
[1770009564808,4.5,99.317,99.27,10.17086785]
[1770009565116,4.5,99.317,99.26,10.17086785]
[1770009565289,4.5,99.317,99.27,10.17086785]
[1770009565480,10.17086785,99.3,99.25,10.17086785]
[1770009565686,4.5,99.289,99.23,10.17086785]
[1770009565900,4.5,99.269,99.21,10.17086785]
[1770009566100,4.5,99.269,99.22,10.17086785]
[1770009566303,4.5,99.269,99.23,10.17086785]
[1770009566703,4.5,99.269,99.24,10.17086785]
[1770009566922,4.5,99.287,99.24,10.17086785]
[1770009567091,4.5,99.287,99.23,10.17086785]
[1770009567291,4.5,99.279,99.23,10.17086785]
[1770009567693,4.5,99.279,99.24,10.17086785]
[1770009567896,4.5,99.279,99.25,10.17086785]
[1770009568103,4.5,99.279,99.172,5.36086188]
[1770009568104,4.5,99.279,99.22,10.17086785]
[1770009568309,10.17086785,99.28,99.22,10.17086785]
[1770009568310,4.5,99.269,99.22,10.17086785]
[1770009568886,4.5,99.259,99.138,50.04973979]
[1770009569106,4.5,99.249,99.19,10.17086785]
[1770009569502,10.07180286,99.288,99.122,129.92586494]
[1770009569503,4.5,99.229,99.17,10.17086785]
[1770009569715,4.5,99.227,99.18,10.17086785]
[1770009570404,4.5,99.227,99.17,10.17086785]
[1770009570605,4.5,99.217,99.17,10.17086785]
[1770009571190,4.5,99.199,99.14,10.17086785]
[1770009571394,4.5,99.196,99.14,10.17086785]
[1770009571609,4.5,99.192,99.16,10.17086785]
[1770009572897,4.5,99.219,99.18,10.17086785]
[1770009573093,4.5,99.219,99.17,10.17086785]
[1770009573290,4.5,99.219,99.18,10.17086785]
[1770009574302,4.5,99.219,99.16,10.17086785]
[1770009574600,4.5,99.219,99.17,10.17086785]
[1770009574794,4.5,99.189,99.13,10.17086785]
[1770009575117,4.5,99.179,99.13,10.17086785]
[1770009575412,4.5,99.179,99.14,10.17086785]
[1770009575712,4.5,99.179,99.12,10.27086785]
[1770009575899,4.5,99.179,99.14,10.17086785]
[1770009577214,4.27527085,99.242,99.12,0.1]
[1770009577215,4.5,99.159,99.12,0.1]
[1770009577517,4.5,99.167,99.13,10.17086785]
[1770009577727,4.5,99.167,99.14,10.17086785]
[1770009578014,28.02,99.168,99.15,10.17086785]
[1770009578217,4.5,99.17,99.14,10.17086785]
[1770009578898,4.5,99.17,99.13,10.17086785]
[1770009579100,4.5,99.187,99.14,10.17086785]
[1770009579425,4.5,99.187,99.13,10.17086785]
[1770009579719,4.5,99.179,99.13,10.17086785]
[1770009580135,4.5,99.179,99.14,10.17086785]
[1770009580298,4.5,99.179,99.13,10.17086785]
[1770009580616,4.5,99.179,99.14,10.17086785]
[1770009582499,4.5,99.191,99.16,10.17086785]
[1770009582718,4.5,99.203,99.17,10.17086785]
[1770009582913,4.5,99.224,99.18,10.17086785]
[1770009583117,4.5,99.224,99.2,10.17086785]
[1770009583320,4.5,99.224,99.19,10.17086785]
[1770009583520,4.5,99.224,99.132,0.28432314]
[1770009583521,4.5,99.236,99.2,10.17086785]
[1770009583720,4.5,99.236,99.21,10.17086785]
[1770009584205,4.5,99.26,99.22,10.17086785]
[1770009584402,4.5,99.26,99.161,4.27527085]
[1770009584403,4.5,99.286,99.24,10.17086785]
[1770009584725,4.5,99.329,99.26,10.17086785]
[1770009584900,4.5,99.329,99.3,10.17086785]
[1770009585222,4.5,99.329,99.28,10.17086785]
[1770009585424,4.5,99.319,99.27,10.17086785]
[1770009585802,4.5,99.319,99.26,10.17086785]
[1770009586007,4.5,99.317,99.26,10.17086785]
[1770009586214,4.5,99.317,99.28,10.17086785]
[1770009586520,4.5,99.317,99.212,0.28432314]
[1770009586521,4.5,99.317,99.29,10.17086785]
[1770009586721,4.5,99.317,99.28,10.17086785]
[1770009587422,4.5,99.317,99.29,10.17086785]
[1770009587638,4.5,99.358,99.31,10.17086785]
[1770009587919,6.6628893,99.359,99.35,10.17086785]
[1770009588123,6.6628893,99.359,99.33,10.17086785]
[1770009588500,6.6628893,99.359,99.34,10.17086785]
[1770009588914,6.6628893,99.359,99.35,10.17086785]
[1770009589110,6.6628893,99.359,99.34,10.17086785]
[1770009589927,11.1628893,99.359,99.33,10.17086785]
[1770009590306,4.5,99.358,99.268,4.16250998]
[1770009590531,4.5,99.358,99.31,10.17086785]
[1770009590707,4.5,99.358,99.3,10.17086785]
[1770009590903,4.5,99.358,99.31,10.17086785]
[1770009591206,4.20565884,99.329,99.28,10.17086785]
[1770009591405,4.20565884,99.328,99.29,10.17086785]
[1770009591716,4.20565884,99.328,99.3,10.17086785]
[1770009592029,4.20565884,99.328,99.28,10.17086785]
[1770009592324,10.86854814,99.359,99.32,10.17086785]
[1770009592526,4.20565884,99.359,99.34,10.17086785]
[1770009592827,4.20565884,99.359,99.33,10.17086785]
[1770009593423,4.20565884,99.359,99.32,10.17086785]
[1770009594021,4.20565884,99.359,99.33,10.17086785]
[1770009594517,4.40565884,99.37,99.34,10.17086785]
[1770009595635,4.40565884,99.37,99.35,10.17086785]
[1770009595810,0.2,99.37,99.35,10.17086785]
[1770009596010,4.27527085,99.412,99.283,4.27527085]
[1770009596011,4.20565884,99.411,99.361,4.16250998]
[1770009596212,4.20565884,99.425,99.4,10.17086785]
[1770009596432,4.20565884,99.425,99.41,10.17086785]
[1770009596628,4.20565884,99.425,99.4,10.17086785]
[1770009596935,4.20565884,99.439,99.41,10.17086785]
[1770009597124,4.20565884,99.419,99.354,4.16250998]
[1770009597426,4.20565884,99.419,99.38,10.17086785]
[1770009597638,4.20565884,99.419,99.39,10.17086785]
[1770009597829,4.20565884,99.435,99.4,10.17086785]
[1770009598028,4.20565884,99.419,99.39,10.17086785]
[1770009598234,4.20565884,99.419,99.37,4.16250998]
[1770009598235,4.20565884,99.419,99.4,10.17086785]
[1770009598434,4.20565884,99.419,99.39,10.17086785]
[1770009598636,4.20565884,99.419,99.4,10.17086785]
[1770009598825,4.20565884,99.419,99.38,10.17086785]
[1770009600035,4.20565884,99.419,99.37,10.17086785]
[1770009600540,4.20565884,99.417,99.38,10.17086785]
[1770009600846,4.20565884,99.417,99.37,10.17086785]
[1770009601025,4.20565884,99.417,99.38,10.17086785]
[1770009601422,4.20565884,99.443,99.41,10.17086785]
[1770009601633,4.20565884,99.443,99.4,10.17086785]
[1770009601938,4.20565884,99.439,99.38,10.17086785]
[1770009602239,4.20565884,99.429,99.38,10.17086785]
[1770009602443,4.20565884,99.419,99.36,10.17086785]
[1770009602822,4.20565884,99.419,99.37,10.17086785]
[1770009603442,4.20565884,99.379,99.33,10.17086785]
[1770009603651,4.20565884,99.379,99.32,10.17086785]
[1770009603821,4.20565884,99.359,99.31,10.17086785]
[1770009604021,28.0,99.36,99.33,10.17086785]
[1770009604223,4.20565884,99.359,99.33,10.17086785]
[1770009604741,4.20565884,99.419,99.351,4.16250998]
[1770009604959,4.20565884,99.429,99.38,10.17086785]
[1770009605242,4.20565884,99.417,99.39,10.17086785]
[1770009605459,4.20565884,99.435,99.4,10.17086785]
[1770009605755,4.20565884,99.435,99.324,4.16250998]
[1770009605922,4.20565884,99.429,99.4,10.17086785]
[1770009606325,4.20565884,99.429,99.41,10.17086785]
[1770009606543,4.20565884,99.429,99.4,10.12091635]
[1770009607145,4.20565884,99.442,99.42,10.12091635]
[1770009607422,4.20565884,99.442,99.372,4.16250998]
[1770009607732,4.28987296,99.439,99.39,10.12091635]
[1770009608256,0.2,99.46,99.311,5.36086188]
[1770009608257,4.28987296,99.429,99.38,10.12091635]
[1770009608960,4.28987296,99.429,99.37,10.12091635]
[1770009609264,4.28987296,99.389,99.34,10.12091635]
[1770009609624,4.28987296,99.389,99.319,4.44878646]
[1770009609825,4.28987296,99.369,99.31,10.12091635]
[1770009610056,4.28987296,99.359,99.31,10.12091635]
[1770009610225,4.28987296,99.359,99.221,8.60498839]
[1770009610226,4.28987296,99.349,99.29,10.12091635]
[1770009610561,4.28987296,99.349,98.938,106.37215037]
[1770009610562,4.28987296,99.337,99.3,10.12091635]
[1770009610725,4.28987296,99.347,99.301,4.44878646]
[1770009610925,4.28987296,99.361,99.316,4.44878646]
[1770009611230,27.98,99.371,99.35,10.12091635]
[1770009611445,27.98,99.371,99.36,10.12091635]
[1770009611630,4.28987296,99.388,99.36,10.12091635]
[1770009611833,4.28987296,99.388,99.34,10.12091635]
[1770009612257,4.28987296,99.402,99.36,10.12091635]
[1770009612550,4.28987296,99.402,99.37,10.12091635]
[1770009612726,4.28987296,99.402,99.301,4.44878646]
[1770009612934,4.28987296,99.399,99.34,10.12091635]
[1770009613128,4.28987296,99.399,99.36,10.12091635]
[1770009613330,4.28987296,99.399,99.35,10.12091635]
[1770009613538,4.28987296,99.399,99.36,10.12091635]
[1770009614236,4.28987296,99.399,99.35,10.12091635]
[1770009614439,4.28987296,99.399,99.36,10.12091635]
[1770009615875,4.28987296,99.399,99.35,10.12091635]
[1770009616453,4.28987296,99.379,99.33,10.12091635]
[1770009616955,4.28987296,99.379,99.3,0.1]
[1770009616956,4.28987296,99.379,99.34,10.12091635]
[1770009617458,4.28987296,99.377,99.34,10.12091635]
[1770009617672,4.28987296,99.377,99.35,10.12091635]
[1770009617854,4.28987296,99.377,99.301,4.44878646]
[1770009618057,4.28987296,99.377,99.33,10.12091635]
[1770009618249,4.28987296,99.377,99.34,10.12091635]
[1770009618637,27.98,99.378,99.35,10.12091635]
[1770009619155,4.28987296,99.377,99.34,10.12091635]
[1770009619740,4.28987296,99.377,99.33,10.12091635]
[1770009619936,4.28987296,99.377,99.32,10.12091635]
[1770009620135,4.28987296,99.377,99.34,10.12091635]
[1770009620337,4.28987296,99.377,99.33,10.12091635]